Workbook

Sheet Lotto
E2: ="Lotto trekking van "&Results!A5 -> Lotto trekking van zaterdag 30 mei 2015
E3: Getallen | K3: Res. | P3: Totaal
E4: =HLOOKUP("Number1",Results!$A$1:$JC$2,2,0) -> 1 | F4: =HLOOKUP("Number2",Results!$A$1:$JC$2,2,0) -> 8 | G4: =HLOOKUP("Number3",Results!$A$1:$JC$2,2,0) -> 22 | H4: =HLOOKUP("Number4",Results!$A$1:$JC$2,2,0) -> 23 | I4: =HLOOKUP("Number5",Results!$A$1:$JC$2,2,0) -> 33 | J4: =HLOOKUP("Number6",Results!$A$1:$JC$2,2,0) -> 42 | K4: =HLOOKUP("Number7",Results!$A$1:$JC$2,2,0) -> 35 | P4: =SUM(P8:P67) -> 0
E6: Mijn combinaties | M6: Aantal juiste
C7: Spel | E7: Getallen | M7: Getallen | N7: Res.
C8: 1 | M8: =IF(E8<>"",SUM(COUNTIF(E8:J8,$E$4:$J$4)),"") ->  | N8: =IF(E8="","",IF(K8=$K$4,"X","-")) ->  | P8: =IFERROR(HLOOKUP(Results!I5,Results!$A$1:$EF$2,2,0),"") ->  | Q8: =IFERROR(VLOOKUP(Results!I5,Results!$M$5:$N$12,2,0),"") -> 
C9: 2 | M9: =IF(E9<>"",SUM(COUNTIF(E9:J9,$E$4:$J$4)),"") ->  | N9: =IF(E9="","",IF(K9=$K$4,"X","-")) ->  | P9: =IFERROR(HLOOKUP(Results!I6,Results!$A$1:$EF$2,2,0),"") ->  | Q9: =IFERROR(VLOOKUP(Results!I6,Results!$M$5:$N$12,2,0),"") -> 
C10: 3 | M10: =IF(E10<>"",SUM(COUNTIF(E10:J10,$E$4:$J$4)),"") ->  | P10: =IFERROR(HLOOKUP(Results!I7,Results!$A$1:$EF$2,2,0),"") ->  | Q10: =IFERROR(VLOOKUP(Results!I7,Results!$M$5:$N$12,2,0),"") -> 
C11: 4 | M11: =IF(E11<>"",SUM(COUNTIF(E11:J11,$E$4:$J$4)),"") ->  | P11: =IFERROR(HLOOKUP(Results!I8,Results!$A$1:$EF$2,2,0),"") ->  | Q11: =IFERROR(VLOOKUP(Results!I8,Results!$M$5:$N$12,2,0),"") -> 
C12: 5 | M12: =IF(E12<>"",SUM(COUNTIF(E12:J12,$E$4:$J$4)),"") ->  | P12: =IFERROR(HLOOKUP(Results!I9,Results!$A$1:$EF$2,2,0),"") ->  | Q12: =IFERROR(VLOOKUP(Results!I9,Results!$M$5:$N$12,2,0),"") -> 
C13: 6 | M13: =IF(E13<>"",SUM(COUNTIF(E13:J13,$E$4:$J$4)),"") ->  | P13: =IFERROR(HLOOKUP(Results!I10,Results!$A$1:$EF$2,2,0),"") ->  | Q13: =IFERROR(VLOOKUP(Results!I10,Results!$M$5:$N$12,2,0),"") -> 
C14: 7 | M14: =IF(E14<>"",SUM(COUNTIF(E14:J14,$E$4:$J$4)),"") ->  | P14: =IFERROR(HLOOKUP(Results!I11,Results!$A$1:$EF$2,2,0),"") ->  | Q14: =IFERROR(VLOOKUP(Results!I11,Results!$M$5:$N$12,2,0),"") -> 
C15: 8 | M15: =IF(E15<>"",SUM(COUNTIF(E15:J15,$E$4:$J$4)),"") ->  | P15: =IFERROR(HLOOKUP(Results!I12,Results!$A$1:$EF$2,2,0),"") ->  | Q15: =IFERROR(VLOOKUP(Results!I12,Results!$M$5:$N$12,2,0),"") -> 
C16: 9 | M16: =IF(E16<>"",SUM(COUNTIF(E16:J16,$E$4:$J$4)),"") ->  | P16: =IFERROR(HLOOKUP(Results!I13,Results!$A$1:$EF$2,2,0),"") ->  | Q16: =IFERROR(VLOOKUP(Results!I13,Results!$M$5:$N$12,2,0),"") -> 
C17: 10 | M17: =IF(E17<>"",SUM(COUNTIF(E17:J17,$E$4:$J$4)),"") ->  | P17: =IFERROR(HLOOKUP(Results!I14,Results!$A$1:$EF$2,2,0),"") ->  | Q17: =IFERROR(VLOOKUP(Results!I14,Results!$M$5:$N$12,2,0),"") -> 
C18: 11 | M18: =IF(E18<>"",SUM(COUNTIF(E18:J18,$E$4:$J$4)),"") ->  | P18: =IFERROR(HLOOKUP(Results!I15,Results!$A$1:$EF$2,2,0),"") ->  | Q18: =IFERROR(VLOOKUP(Results!I15,Results!$M$5:$N$12,2,0),"") -> 
C19: 12 | M19: =IF(E19<>"",SUM(COUNTIF(E19:J19,$E$4:$J$4)),"") ->  | P19: =IFERROR(HLOOKUP(Results!I16,Results!$A$1:$EF$2,2,0),"") ->  | Q19: =IFERROR(VLOOKUP(Results!I16,Results!$M$5:$N$12,2,0),"") -> 
C20: 13 | M20: =IF(E20<>"",SUM(COUNTIF(E20:J20,$E$4:$J$4)),"") ->  | P20: =IFERROR(HLOOKUP(Results!I17,Results!$A$1:$EF$2,2,0),"") ->  | Q20: =IFERROR(VLOOKUP(Results!I17,Results!$M$5:$N$12,2,0),"") -> 
C21: 14 | M21: =IF(E21<>"",SUM(COUNTIF(E21:J21,$E$4:$J$4)),"") ->  | P21: =IFERROR(HLOOKUP(Results!I18,Results!$A$1:$EF$2,2,0),"") ->  | Q21: =IFERROR(VLOOKUP(Results!I18,Results!$M$5:$N$12,2,0),"") -> 
C22: 15 | M22: =IF(E22<>"",SUM(COUNTIF(E22:J22,$E$4:$J$4)),"") ->  | P22: =IFERROR(HLOOKUP(Results!I19,Results!$A$1:$EF$2,2,0),"") ->  | Q22: =IFERROR(VLOOKUP(Results!I19,Results!$M$5:$N$12,2,0),"") -> 
C23: 16 | M23: =IF(E23<>"",SUM(COUNTIF(E23:J23,$E$4:$J$4)),"") ->  | P23: =IFERROR(HLOOKUP(Results!I20,Results!$A$1:$EF$2,2,0),"") ->  | Q23: =IFERROR(VLOOKUP(Results!I20,Results!$M$5:$N$12,2,0),"") -> 
C24: 17 | M24: =IF(E24<>"",SUM(COUNTIF(E24:J24,$E$4:$J$4)),"") ->  | P24: =IFERROR(HLOOKUP(Results!I21,Results!$A$1:$EF$2,2,0),"") ->  | Q24: =IFERROR(VLOOKUP(Results!I21,Results!$M$5:$N$12,2,0),"") -> 
C25: 18 | M25: =IF(E25<>"",SUM(COUNTIF(E25:J25,$E$4:$J$4)),"") ->  | P25: =IFERROR(HLOOKUP(Results!I22,Results!$A$1:$EF$2,2,0),"") ->  | Q25: =IFERROR(VLOOKUP(Results!I22,Results!$M$5:$N$12,2,0),"") -> 
C26: 19 | M26: =IF(E26<>"",SUM(COUNTIF(E26:J26,$E$4:$J$4)),"") ->  | P26: =IFERROR(HLOOKUP(Results!I23,Results!$A$1:$EF$2,2,0),"") ->  | Q26: =IFERROR(VLOOKUP(Results!I23,Results!$M$5:$N$12,2,0),"") -> 
C27: 20 | M27: =IF(E27<>"",SUM(COUNTIF(E27:J27,$E$4:$J$4)),"") ->  | P27: =IFERROR(HLOOKUP(Results!I24,Results!$A$1:$EF$2,2,0),"") ->  | Q27: =IFERROR(VLOOKUP(Results!I24,Results!$M$5:$N$12,2,0),"") -> 
C28: 21 | M28: =IF(E28<>"",SUM(COUNTIF(E28:J28,$E$4:$J$4)),"") ->  | P28: =IFERROR(HLOOKUP(Results!I25,Results!$A$1:$EF$2,2,0),"") ->  | Q28: =IFERROR(VLOOKUP(Results!I25,Results!$M$5:$N$12,2,0),"") -> 
C29: 22 | M29: =IF(E29<>"",SUM(COUNTIF(E29:J29,$E$4:$J$4)),"") ->  | P29: =IFERROR(HLOOKUP(Results!I26,Results!$A$1:$EF$2,2,0),"") ->  | Q29: =IFERROR(VLOOKUP(Results!I26,Results!$M$5:$N$12,2,0),"") -> 
C30: 23 | M30: =IF(E30<>"",SUM(COUNTIF(E30:J30,$E$4:$J$4)),"") ->  | P30: =IFERROR(HLOOKUP(Results!I27,Results!$A$1:$EF$2,2,0),"") ->  | Q30: =IFERROR(VLOOKUP(Results!I27,Results!$M$5:$N$12,2,0),"") -> 
C31: 24 | M31: =IF(E31<>"",SUM(COUNTIF(E31:J31,$E$4:$J$4)),"") ->  | P31: =IFERROR(HLOOKUP(Results!I28,Results!$A$1:$EF$2,2,0),"") ->  | Q31: =IFERROR(VLOOKUP(Results!I28,Results!$M$5:$N$12,2,0),"") -> 
C32: 25 | M32: =IF(E32<>"",SUM(COUNTIF(E32:J32,$E$4:$J$4)),"") ->  | P32: =IFERROR(HLOOKUP(Results!I29,Results!$A$1:$EF$2,2,0),"") ->  | Q32: =IFERROR(VLOOKUP(Results!I29,Results!$M$5:$N$12,2,0),"") -> 
C33: 26 | M33: =IF(E33<>"",SUM(COUNTIF(E33:J33,$E$4:$J$4)),"") ->  | P33: =IFERROR(HLOOKUP(Results!I30,Results!$A$1:$EF$2,2,0),"") ->  | Q33: =IFERROR(VLOOKUP(Results!I30,Results!$M$5:$N$12,2,0),"") -> 
C34: 27 | M34: =IF(E34<>"",SUM(COUNTIF(E34:J34,$E$4:$J$4)),"") ->  | P34: =IFERROR(HLOOKUP(Results!I31,Results!$A$1:$EF$2,2,0),"") ->  | Q34: =IFERROR(VLOOKUP(Results!I31,Results!$M$5:$N$12,2,0),"") -> 
C35: 28 | M35: =IF(E35<>"",SUM(COUNTIF(E35:J35,$E$4:$J$4)),"") ->  | P35: =IFERROR(HLOOKUP(Results!I32,Results!$A$1:$EF$2,2,0),"") ->  | Q35: =IFERROR(VLOOKUP(Results!I32,Results!$M$5:$N$12,2,0),"") -> 
C36: 29 | M36: =IF(E36<>"",SUM(COUNTIF(E36:J36,$E$4:$J$4)),"") ->  | P36: =IFERROR(HLOOKUP(Results!I33,Results!$A$1:$EF$2,2,0),"") ->  | Q36: =IFERROR(VLOOKUP(Results!I33,Results!$M$5:$N$12,2,0),"") -> 
C37: 30 | M37: =IF(E37<>"",SUM(COUNTIF(E37:J37,$E$4:$J$4)),"") ->  | P37: =IFERROR(HLOOKUP(Results!I34,Results!$A$1:$EF$2,2,0),"") ->  | Q37: =IFERROR(VLOOKUP(Results!I34,Results!$M$5:$N$12,2,0),"") -> 
C38: 31 | M38: =IF(E38<>"",SUM(COUNTIF(E38:J38,$E$4:$J$4)),"") ->  | P38: =IFERROR(HLOOKUP(Results!I35,Results!$A$1:$EF$2,2,0),"") ->  | Q38: =IFERROR(VLOOKUP(Results!I35,Results!$M$5:$N$12,2,0),"") -> 
C39: 32 | M39: =IF(E39<>"",SUM(COUNTIF(E39:J39,$E$4:$J$4)),"") ->  | P39: =IFERROR(HLOOKUP(Results!I36,Results!$A$1:$EF$2,2,0),"") ->  | Q39: =IFERROR(VLOOKUP(Results!I36,Results!$M$5:$N$12,2,0),"") -> 
C40: 33 | M40: =IF(E40<>"",SUM(COUNTIF(E40:J40,$E$4:$J$4)),"") ->  | P40: =IFERROR(HLOOKUP(Results!I37,Results!$A$1:$EF$2,2,0),"") ->  | Q40: =IFERROR(VLOOKUP(Results!I37,Results!$M$5:$N$12,2,0),"") -> 
C41: 34 | M41: =IF(E41<>"",SUM(COUNTIF(E41:J41,$E$4:$J$4)),"") ->  | P41: =IFERROR(HLOOKUP(Results!I38,Results!$A$1:$EF$2,2,0),"") ->  | Q41: =IFERROR(VLOOKUP(Results!I38,Results!$M$5:$N$12,2,0),"") -> 
C42: 35 | M42: =IF(E42<>"",SUM(COUNTIF(E42:J42,$E$4:$J$4)),"") ->  | P42: =IFERROR(HLOOKUP(Results!I39,Results!$A$1:$EF$2,2,0),"") ->  | Q42: =IFERROR(VLOOKUP(Results!I39,Results!$M$5:$N$12,2,0),"") -> 
C43: 36 | M43: =IF(E43<>"",SUM(COUNTIF(E43:J43,$E$4:$J$4)),"") ->  | P43: =IFERROR(HLOOKUP(Results!I40,Results!$A$1:$EF$2,2,0),"") ->  | Q43: =IFERROR(VLOOKUP(Results!I40,Results!$M$5:$N$12,2,0),"") -> 
C44: 37 | M44: =IF(E44<>"",SUM(COUNTIF(E44:J44,$E$4:$J$4)),"") ->  | P44: =IFERROR(HLOOKUP(Results!I41,Results!$A$1:$EF$2,2,0),"") ->  | Q44: =IFERROR(VLOOKUP(Results!I41,Results!$M$5:$N$12,2,0),"") -> 
C45: 38 | M45: =IF(E45<>"",SUM(COUNTIF(E45:J45,$E$4:$J$4)),"") ->  | P45: =IFERROR(HLOOKUP(Results!I42,Results!$A$1:$EF$2,2,0),"") ->  | Q45: =IFERROR(VLOOKUP(Results!I42,Results!$M$5:$N$12,2,0),"") -> 
C46: 39 | M46: =IF(E46<>"",SUM(COUNTIF(E46:J46,$E$4:$J$4)),"") ->  | P46: =IFERROR(HLOOKUP(Results!I43,Results!$A$1:$EF$2,2,0),"") ->  | Q46: =IFERROR(VLOOKUP(Results!I43,Results!$M$5:$N$12,2,0),"") -> 
C47: 40 | M47: =IF(E47<>"",SUM(COUNTIF(E47:J47,$E$4:$J$4)),"") ->  | P47: =IFERROR(HLOOKUP(Results!I44,Results!$A$1:$EF$2,2,0),"") ->  | Q47: =IFERROR(VLOOKUP(Results!I44,Results!$M$5:$N$12,2,0),"") -> 
C48: 41 | M48: =IF(E48<>"",SUM(COUNTIF(E48:J48,$E$4:$J$4)),"") ->  | P48: =IFERROR(HLOOKUP(Results!I45,Results!$A$1:$EF$2,2,0),"") ->  | Q48: =IFERROR(VLOOKUP(Results!I45,Results!$M$5:$N$12,2,0),"") -> 
C49: 42 | M49: =IF(E49<>"",SUM(COUNTIF(E49:J49,$E$4:$J$4)),"") ->  | P49: =IFERROR(HLOOKUP(Results!I46,Results!$A$1:$EF$2,2,0),"") ->  | Q49: =IFERROR(VLOOKUP(Results!I46,Results!$M$5:$N$12,2,0),"") -> 
C50: 43 | M50: =IF(E50<>"",SUM(COUNTIF(E50:J50,$E$4:$J$4)),"") ->  | P50: =IFERROR(HLOOKUP(Results!I47,Results!$A$1:$EF$2,2,0),"") ->  | Q50: =IFERROR(VLOOKUP(Results!I47,Results!$M$5:$N$12,2,0),"") -> 
C51: 44 | M51: =IF(E51<>"",SUM(COUNTIF(E51:J51,$E$4:$J$4)),"") ->  | P51: =IFERROR(HLOOKUP(Results!I48,Results!$A$1:$EF$2,2,0),"") ->  | Q51: =IFERROR(VLOOKUP(Results!I48,Results!$M$5:$N$12,2,0),"") -> 
C52: 45 | M52: =IF(E52<>"",SUM(COUNTIF(E52:J52,$E$4:$J$4)),"") ->  | P52: =IFERROR(HLOOKUP(Results!I49,Results!$A$1:$EF$2,2,0),"") ->  | Q52: =IFERROR(VLOOKUP(Results!I49,Results!$M$5:$N$12,2,0),"") -> 
C53: 46 | M53: =IF(E53<>"",SUM(COUNTIF(E53:J53,$E$4:$J$4)),"") ->  | P53: =IFERROR(HLOOKUP(Results!I50,Results!$A$1:$EF$2,2,0),"") ->  | Q53: =IFERROR(VLOOKUP(Results!I50,Results!$M$5:$N$12,2,0),"") -> 
C54: 47 | M54: =IF(E54<>"",SUM(COUNTIF(E54:J54,$E$4:$J$4)),"") ->  | P54: =IFERROR(HLOOKUP(Results!I51,Results!$A$1:$EF$2,2,0),"") ->  | Q54: =IFERROR(VLOOKUP(Results!I51,Results!$M$5:$N$12,2,0),"") -> 
C55: 48 | M55: =IF(E55<>"",SUM(COUNTIF(E55:J55,$E$4:$J$4)),"") ->  | P55: =IFERROR(HLOOKUP(Results!I52,Results!$A$1:$EF$2,2,0),"") ->  | Q55: =IFERROR(VLOOKUP(Results!I52,Results!$M$5:$N$12,2,0),"") -> 
C56: 49 | M56: =IF(E56<>"",SUM(COUNTIF(E56:J56,$E$4:$J$4)),"") ->  | P56: =IFERROR(HLOOKUP(Results!I53,Results!$A$1:$EF$2,2,0),"") ->  | Q56: =IFERROR(VLOOKUP(Results!I53,Results!$M$5:$N$12,2,0),"") -> 
C57: 50 | M57: =IF(E57<>"",SUM(COUNTIF(E57:J57,$E$4:$J$4)),"") ->  | P57: =IFERROR(HLOOKUP(Results!I54,Results!$A$1:$EF$2,2,0),"") ->  | Q57: =IFERROR(VLOOKUP(Results!I54,Results!$M$5:$N$12,2,0),"") -> 
C58: 51 | M58: =IF(E58<>"",SUM(COUNTIF(E58:J58,$E$4:$J$4)),"") ->  | P58: =IFERROR(HLOOKUP(Results!I55,Results!$A$1:$EF$2,2,0),"") ->  | Q58: =IFERROR(VLOOKUP(Results!I55,Results!$M$5:$N$12,2,0),"") -> 
C59: 52 | M59: =IF(E59<>"",SUM(COUNTIF(E59:J59,$E$4:$J$4)),"") ->  | P59: =IFERROR(HLOOKUP(Results!I56,Results!$A$1:$EF$2,2,0),"") ->  | Q59: =IFERROR(VLOOKUP(Results!I56,Results!$M$5:$N$12,2,0),"") -> 
C60: 53 | M60: =IF(E60<>"",SUM(COUNTIF(E60:J60,$E$4:$J$4)),"") ->  | P60: =IFERROR(HLOOKUP(Results!I57,Results!$A$1:$EF$2,2,0),"") ->  | Q60: =IFERROR(VLOOKUP(Results!I57,Results!$M$5:$N$12,2,0),"") -> 
C61: 54 | M61: =IF(E61<>"",SUM(COUNTIF(E61:J61,$E$4:$J$4)),"") ->  | P61: =IFERROR(HLOOKUP(Results!I58,Results!$A$1:$EF$2,2,0),"") ->  | Q61: =IFERROR(VLOOKUP(Results!I58,Results!$M$5:$N$12,2,0),"") -> 
C62: 55 | M62: =IF(E62<>"",SUM(COUNTIF(E62:J62,$E$4:$J$4)),"") ->  | P62: =IFERROR(HLOOKUP(Results!I59,Results!$A$1:$EF$2,2,0),"") ->  | Q62: =IFERROR(VLOOKUP(Results!I59,Results!$M$5:$N$12,2,0),"") -> 
C63: 56 | M63: =IF(E63<>"",SUM(COUNTIF(E63:J63,$E$4:$J$4)),"") ->  | P63: =IFERROR(HLOOKUP(Results!I60,Results!$A$1:$EF$2,2,0),"") ->  | Q63: =IFERROR(VLOOKUP(Results!I60,Results!$M$5:$N$12,2,0),"") -> 
C64: 57 | M64: =IF(E64<>"",SUM(COUNTIF(E64:J64,$E$4:$J$4)),"") ->  | P64: =IFERROR(HLOOKUP(Results!I61,Results!$A$1:$EF$2,2,0),"") ->  | Q64: =IFERROR(VLOOKUP(Results!I61,Results!$M$5:$N$12,2,0),"") -> 
C65: 58 | M65: =IF(E65<>"",SUM(COUNTIF(E65:J65,$E$4:$J$4)),"") ->  | P65: =IFERROR(HLOOKUP(Results!I62,Results!$A$1:$EF$2,2,0),"") ->  | Q65: =IFERROR(VLOOKUP(Results!I62,Results!$M$5:$N$12,2,0),"") -> 
C66: 59 | M66: =IF(E66<>"",SUM(COUNTIF(E66:J66,$E$4:$J$4)),"") ->  | P66: =IFERROR(HLOOKUP(Results!I63,Results!$A$1:$EF$2,2,0),"") ->  | Q66: =IFERROR(VLOOKUP(Results!I63,Results!$M$5:$N$12,2,0),"") -> 
C67: 60 | M67: =IF(E67<>"",SUM(COUNTIF(E67:J67,$E$4:$J$4)),"") ->  | P67: =IFERROR(HLOOKUP(Results!I64,Results!$A$1:$EF$2,2,0),"") ->  | Q67: =IFERROR(VLOOKUP(Results!I64,Results!$M$5:$N$12,2,0),"") -> 

Sheet Weetjes
B2: =Lotto!E2 -> Lotto trekking van zaterdag 30 mei 2015
B4: Prijzengeld | E4: Winnaars | H4: Aantal spelers | I4: =HLOOKUP(Results!S5,Results!$A$1:$JC$2,2,0) -> 757360 | K4: Website Lotto
B5: Rang 1 | C5: =HLOOKUP(Results!M5,Results!$A$1:$JC$2,2,0) -> 0 | E5: Rang 1 | F5: =HLOOKUP(Results!O5,Results!$A$1:$EF$2,2,0) -> 0 | H5: Totale inzet | I5: =HLOOKUP(Results!S6,Results!$A$1:$JC$2,2,0) -> 5000044
B6: Rang 2 | C6: =HLOOKUP(Results!M6,Results!$A$1:$JC$2,2,0) -> 92250.8 | E6: Rang 2 | F6: =HLOOKUP(Results!O6,Results!$A$1:$EF$2,2,0) -> 2
B7: Rang 3 | C7: =HLOOKUP(Results!M7,Results!$A$1:$JC$2,2,0) -> 777.7 | E7: Rang 3 | F7: =HLOOKUP(Results!O7,Results!$A$1:$EF$2,2,0) -> 225
B8: Rang 4 | C8: =HLOOKUP(Results!M8,Results!$A$1:$JC$2,2,0) -> 207.8 | E8: Rang 4 | F8: =HLOOKUP(Results!O8,Results!$A$1:$EF$2,2,0) -> 421
B9: Rang 5 | C9: =HLOOKUP(Results!M9,Results!$A$1:$JC$2,2,0) -> 18.8 | E9: Rang 5 | F9: =HLOOKUP(Results!O9,Results!$A$1:$EF$2,2,0) -> 8578
B10: Rang 6 | C10: =HLOOKUP(Results!M10,Results!$A$1:$JC$2,2,0) -> 9.4 | E10: Rang 6 | F10: =HLOOKUP(Results!O10,Results!$A$1:$EF$2,2,0) -> 9179
B11: Rang 7 | C11: =HLOOKUP(Results!M11,Results!$A$1:$JC$2,2,0) -> 5 | E11: Rang 7 | F11: =HLOOKUP(Results!O11,Results!$A$1:$EF$2,2,0) -> 127134
B12: Rang 8 | C12: =HLOOKUP(Results!M12,Results!$A$1:$JC$2,2,0) -> 3 | E12: Rang 8 | F12: =HLOOKUP(Results!O12,Results!$A$1:$EF$2,2,0) -> 73149

Sheet Results (hidden)
A1: X | B1: =A2 -> {"Succeeded" | C1: =B2 -> TRUE | D1: Message | E1: null | F1: Data | G1: {"DrawType" | H1: LottoDraw | I1: Draw | J1: {"Id" | K1: 4084 | L1: DrawDate | M1: 2015-05-30T18:59:59 | N1: NextDraw | O1: 2015-06-03T18:59:59 | P1: Stats | Q1: null | R1: Number1 | S1: 1 | T1: Number2 | U1: 8 | V1: Number3 | W1: 22 | X1: Number4 | Y1: 23 | Z1: Number5 | AA1: 33 | AB1: Number6 | AC1: 42 | AD1: Number7 | AE1: 35 | AF1: Rank1Winners | AG1: 0 | AH1: Rank2Winners | AI1: 2 | AJ1: Rank3Winners | AK1: 225 | AL1: Rank4Winners | AM1: 421 | AN1: Rank5Winners | AO1: 8578 | AP1: Rank6Winners | AQ1: 9179 | AR1: Rank7Winners | AS1: 127134 | AT1: Rank8Winners | AU1: 73149 | AV1: Rank1Gains | AW1: 0 | AX1: Rank2Gains | AY1: 92250.8 | AZ1: Rank3Gains | BA1: 777.7 | BB1: Rank4Gains | BC1: 207.8 | BD1: Rank5Gains | BE1: 18.8 | BF1: Rank6Gains | BG1: 9.4 | BH1: Rank7Gains | BI1: 5 | BJ1: Rank8Gains | BK1: 3 | BL1: TotalPlayers | BM1: 757360 | BN1: TotalMoney | BO1: =BN2 -> 5000044 | BP1: EstimatedJackpot | BQ1: 2000000.0000 | BR1: NextJackpot | BS1: 1000000.0000 | BT1: IsNewDraw | BU1: FALSE | BV1: RollDown | BW1: FALSE | BX1: Results | BY1: [1 | BZ1: 8 | CA1: 22 | CB1: 23 | CC1: 33 | CD1: 42 | CE1: 35] | CF1: GainDistribution | CG1: [{"Title" | CH1: 6 | CI1: Winners | CJ1: 0 | CK1: Gains | CL1: 0.0000} | CM1: {"Title" | CN1: 5+ | CO1: Winners | CP1: 2 | CQ1: Gains | CR1: 92250.8000} | CS1: {"Title" | CT1: 5 | CU1: Winners | CV1: 225 | CW1: Gains | CX1: 777.7000} | CY1: {"Title" | CZ1: 4+ | DA1: Winners | DB1: 421 | DC1: Gains | DD1: 207.8000} | DE1: {"Title" | DF1: 4 | DG1: Winners | DH1: 8578 | DI1: Gains | DJ1: 18.8000} | DK1: {"Title" | DL1: 3+ | DM1: Winners | DN1: 9179 | DO1: Gains | DP1: 9.4000} | DQ1: {"Title" | DR1: 3 | DS1: Winners | DT1: 127134 | DU1: Gains | DV1: 5.0000} | DW1: {"Title" | DX1: 2+ | DY1: Winners | DZ1: 73149 | EA1: =DZ2 -> Gains | EB1: 3.0000}]} | EC1: VideoUrls | ED1: https://nlotstoragemedia01.blob.core.windows.net:443/asset-fed43a5d-1500-80c3-fdc5-f1e506f4f40c/20150530_NL_LOTTO.mp4?sv=2012-02-12&sr=c&si=a676c473-ffe2-4ce8-a13b-8293eb52cabe&sig=CrpYQ4Sy6GEWf6D9p%2FSOwD1TWs0IMPIWFOtCAC79V9U%3D&se=2015-10-17T18%3A40%3A48Z} | EE1: Exception | EF1: null}
A2: {"Succeeded" | B2: TRUE | C2: Message | D2: null | E2: Data | F2: {"DrawType" | G2: LottoDraw | H2: Draw | I2: {"Id" | J2: 4084 | K2: DrawDate | L2: 2015-05-30T18:59:59 | M2: NextDraw | N2: 2015-06-03T18:59:59 | O2: Stats | P2: null | Q2: Number1 | R2: 1 | S2: Number2 | T2: 8 | U2: Number3 | V2: 22 | W2: Number4 | X2: 23 | Y2: Number5 | Z2: 33 | AA2: Number6 | AB2: 42 | AC2: Number7 | AD2: 35 | AE2: Rank1Winners | AF2: 0 | AG2: Rank2Winners | AH2: 2 | AI2: Rank3Winners | AJ2: 225 | AK2: Rank4Winners | AL2: 421 | AM2: Rank5Winners | AN2: 8578 | AO2: Rank6Winners | AP2: 9179 | AQ2: Rank7Winners | AR2: 127134 | AS2: Rank8Winners | AT2: 73149 | AU2: Rank1Gains | AV2: 0 | AW2: Rank2Gains | AX2: 92250.8 | AY2: Rank3Gains | AZ2: 777.7 | BA2: Rank4Gains | BB2: 207.8 | BC2: Rank5Gains | BD2: 18.8 | BE2: Rank6Gains | BF2: 9.4 | BG2: Rank7Gains | BH2: 5 | BI2: Rank8Gains | BJ2: 3 | BK2: TotalPlayers | BL2: 757360 | BM2: TotalMoney | BN2: 5000044 | BO2: EstimatedJackpot | BP2: 2000000.0000 | BQ2: NextJackpot | BR2: 1000000.0000 | BS2: IsNewDraw | BT2: FALSE | BU2: RollDown | BV2: FALSE | BW2: Results | BX2: [1 | BY2: 8 | BZ2: 22 | CA2: 23 | CB2: 33 | CC2: 42 | CD2: 35] | CE2: GainDistribution | CF2: [{"Title" | CG2: 6 | CH2: Winners | CI2: 0 | CJ2: Gains | CK2: 0.0000} | CL2: {"Title" | CM2: 5+ | CN2: Winners | CO2: 2 | CP2: Gains | CQ2: 92250.8000} | CR2: {"Title" | CS2: 5 | CT2: Winners | CU2: 225 | CV2: Gains | CW2: 777.7000} | CX2: {"Title" | CY2: 4+ | CZ2: Winners | DA2: 421 | DB2: Gains | DC2: 207.8000} | DD2: {"Title" | DE2: 4 | DF2: Winners | DG2: 8578 | DH2: Gains | DI2: 18.8000} | DJ2: {"Title" | DK2: 3+ | DL2: Winners | DM2: 9179 | DN2: Gains | DO2: 9.4000} | DP2: {"Title" | DQ2: 3 | DR2: Winners | DS2: 127134 | DT2: Gains | DU2: 5.0000} | DV2: {"Title" | DW2: 2+ | DX2: Winners | DY2: 73149 | DZ2: Gains | EA2: 3.0000}]} | EB2: VideoUrls | EC2: https://nlotstoragemedia01.blob.core.windows.net:443/asset-fed43a5d-1500-80c3-fdc5-f1e506f4f40c/20150530_NL_LOTTO.mp4?sv=2012-02-12&sr=c&si=a676c473-ffe2-4ce8-a13b-8293eb52cabe&sig=CrpYQ4Sy6GEWf6D9p%2FSOwD1TWs0IMPIWFOtCAC79V9U%3D&se=2015-10-17T18%3A40%3A48Z} | ED2: Exception | EE2: null}
A5: =TEXT(LEFT(HLOOKUP("DrawDate",$A$1:$EF$2,2,0),10),"dddd dd mmm jjjj") -> zaterdag 30 mei 2015 | F5: Vandaag | H5: =Lotto!M8&Lotto!N8 ->  | I5: =IFERROR(VLOOKUP(H5,$L$5:$M$12,2,0),"") ->  | L5: 6- | M5: Rank1Gains | N5: Rang 1 | O5: Rank1Winners | S5: TotalPlayers
F6: =TODAY() -> 2015-06-03 | H6: =Lotto!M9&Lotto!N9 ->  | I6: =IFERROR(VLOOKUP(H6,$L$5:$M$12,2,0),"") ->  | L6: 5X | M6: Rank2Gains | N6: Rang 2 | O6: Rank2Winners | S6: TotalMoney
H7: =Lotto!M10&Lotto!N10 ->  | L7: 5- | M7: Rank3Gains | N7: Rang 3 | O7: Rank3Winners
H8: =Lotto!M11&Lotto!N11 ->  | L8: 4X | M8: Rank4Gains | N8: Rang 4 | O8: Rank4Winners
H9: =Lotto!M12&Lotto!N12 ->  | L9: 4- | M9: Rank5Gains | N9: Rang 5 | O9: Rank5Winners
H10: =Lotto!M13&Lotto!N13 ->  | L10: 3X | M10: Rank6Gains | N10: Rang 6 | O10: Rank6Winners
H11: =Lotto!M14&Lotto!N14 ->  | L11: 3- | M11: Rank7Gains | N11: Rang 7 | O11: Rank7Winners
H12: =Lotto!M15&Lotto!N15 ->  | L12: 2X | M12: Rank8Gains | N12: Rang 8 | O12: Rank8Winners
H13: =Lotto!M16&Lotto!N16 -> 
H14: =Lotto!M17&Lotto!N17 -> 
H15: =Lotto!M18&Lotto!N18 -> 
H16: =Lotto!M19&Lotto!N19 -> 
H17: =Lotto!M20&Lotto!N20 -> 
H18: =Lotto!M21&Lotto!N21 -> 
H19: =Lotto!M22&Lotto!N22 -> 
H20: =Lotto!M23&Lotto!N23 -> 
H21: =Lotto!M24&Lotto!N24 -> 
H22: =Lotto!M25&Lotto!N25 -> 
H23: =Lotto!M26&Lotto!N26 -> 
H24: =Lotto!M27&Lotto!N27 -> 
H25: =Lotto!M28&Lotto!N28 -> 
H26: =Lotto!M29&Lotto!N29 -> 
H27: =Lotto!M30&Lotto!N30 -> 
H28: =Lotto!M31&Lotto!N31 -> 
H29: =Lotto!M32&Lotto!N32 -> 
H30: =Lotto!M33&Lotto!N33 -> 
H31: =Lotto!M34&Lotto!N34 -> 
H32: =Lotto!M35&Lotto!N35 -> 
H33: =Lotto!M36&Lotto!N36 -> 
H34: =Lotto!M37&Lotto!N37 -> 
H35: =Lotto!M38&Lotto!N38 -> 
H36: =Lotto!M39&Lotto!N39 -> 
H37: =Lotto!M40&Lotto!N40 -> 
H38: =Lotto!M41&Lotto!N41 -> 
H39: =Lotto!M42&Lotto!N42 -> 
H40: =Lotto!M43&Lotto!N43 -> 
H41: =Lotto!M44&Lotto!N44 -> 
H42: =Lotto!M45&Lotto!N45 -> 
H43: =Lotto!M46&Lotto!N46 -> 
H44: =Lotto!M47&Lotto!N47 -> 
H45: =Lotto!M48&Lotto!N48 -> 
H46: =Lotto!M49&Lotto!N49 -> 
H47: =Lotto!M50&Lotto!N50 -> 
H48: =Lotto!M51&Lotto!N51 -> 
H49: =Lotto!M52&Lotto!N52 -> 
H50: =Lotto!M53&Lotto!N53 -> 
H51: =Lotto!M54&Lotto!N54 -> 
H52: =Lotto!M55&Lotto!N55 -> 
H53: =Lotto!M56&Lotto!N56 -> 
H54: =Lotto!M57&Lotto!N57 -> 
H55: =Lotto!M58&Lotto!N58 -> 
H56: =Lotto!M59&Lotto!N59 -> 
H57: =Lotto!M60&Lotto!N60 -> 
H58: =Lotto!M61&Lotto!N61 -> 
H59: =Lotto!M62&Lotto!N62 -> 
H60: =Lotto!M63&Lotto!N63 -> 
H61: =Lotto!M64&Lotto!N64 -> 
H62: =Lotto!M65&Lotto!N65 -> 
H63: =Lotto!M66&Lotto!N66 -> 
H64: =Lotto!M67&Lotto!N67 -> 
